fUST/lending_fUST_20241106
["ID","MTS","AMOUNT","RATE_DAILY","PERIOD"]
[341416843,1730868656614,-500.0,0.0003863,14]
[341416844,1730868656624,-505.95025718,0.0003863,14]
[341416845,1730868656633,-500.0,0.0003863,14]
[341416846,1730868656642,-500.0,0.0003863,14]
[341416847,1730868656652,-500.0,0.0003863,14]
[341416848,1730868656662,-504.16000435,0.0003863,14]
[341416849,1730868656671,-505.42158605,0.0003863,14]
[341416850,1730868656680,-510.07802866,0.0003863,14]
[341416851,1730868656690,-500.0,0.0003863,14]
[341416852,1730868656699,-500.0,0.0003863,14]
[341416853,1730868656708,-500.0,0.0003863,14]
[341416854,1730868656718,-526.24796134,0.0003863,14]
[341416855,1730868656728,-500.0,0.0003863,14]
[341416856,1730868656737,-518.21220481,0.0003863,14]
[341416857,1730868656796,-529.94110027,0.0003863,14]
[341416858,1730868656805,-500.0,0.0003863,14]
[341416859,1730868656814,-500.0,0.0003863,14]
[341416860,1730868656823,-500.0,0.0003863,14]
[341416861,1730868656833,-500.0,0.0003863,14]
[341416862,1730868656843,-504.85562288,0.0003863,14]
[341416863,1730868656852,-500.0,0.0003863,14]
[341416864,1730868656862,-500.0,0.0003863,14]
[341416865,1730868656871,-500.0,0.0003863,14]
[341416866,1730868656880,-500.0,0.0003863,14]
[341416867,1730868656889,-589.09517693,0.0003863,14]
[341416868,1730868656898,-500.0,0.0003863,14]
[341416869,1730868656907,-506.95028191,0.0003863,14]
[341416870,1730868656917,-189.13936366,0.0003863,14]
[341416871,1730868656926,-509.66725824,0.0003863,14]
[341416872,1730868656935,-500.87187042,0.0003863,14]
[341416873,1730868656944,-532.86319577,0.0003863,14]
[341416874,1730868656954,-515.86024469,0.0003863,14]
[341416875,1730868656964,-522.9367212,0.0003863,14]
[341416876,1730868656973,-503.66720802,0.0003863,14]
[341416877,1730868656982,-500.0,0.0003863,14]
[341416878,1730868656992,-500.0,0.0003863,14]
[341416879,1730868657001,-312.68409465,0.0003863,14]
[341416880,1730868657010,-500.0,0.0003863,14]
[341416881,1730868657020,-501.62311854,0.0003863,14]
[341416882,1730868657029,-501.79320615,0.0003863,14]
[341416883,1730868657037,-500.0,0.0003863,14]
[341416884,1730868657046,-500.0,0.0003863,14]
[341416885,1730868657055,-1000.0,0.0003863,5]
[341416886,1730868657064,-510.5069307,0.0003863,14]
[341416887,1730868657073,-500.0,0.0003863,14]
[341416888,1730868657082,-519.72598814,0.0003863,14]
[341416889,1730868657093,-500.0,0.0003863,14]
[341416890,1730868657102,-520.56294527,0.0003863,14]
[341416891,1730868657111,-512.66384961,0.0003863,14]
[341416892,1730868657121,-500.0,0.0003863,14]
[341416893,1730868657131,-500.0,0.0003863,7]
[341416894,1730868657140,-500.0,0.0003863,14]
[341416895,1730868657149,-500.0,0.0003863,14]
[341416896,1730868657158,-500.0,0.0003863,14]
[341416897,1730868657167,-504.22208521,0.0003863,14]
[341416898,1730868657176,-191.43887973,0.0003863,14]
[341416899,1730868657186,-500.0,0.0003863,14]
[341416900,1730868657194,-500.0,0.0003863,14]
[341416901,1730868657204,-500.0,0.0003863,14]
[341416902,1730868657213,-500.0,0.0003863,14]
[341416903,1730868657222,-500.0,0.0003863,14]
[341416904,1730868657231,-500.0,0.0003863,14]
[341416905,1730868657240,-500.0,0.0003863,14]
[341416906,1730868657249,-500.0,0.0003863,14]
[341416907,1730868657258,-509.69701043,0.0003863,14]
[341416908,1730868657268,-505.39669405,0.0003863,14]
[341416909,1730868657277,-500.0,0.0003863,14]
[341416910,1730868657286,-500.0,0.0003863,14]
[341416911,1730868657295,-570.58087832,0.0003863,14]
[341416912,1730868657304,-500.0,0.0003863,14]
[341416913,1730868657313,-500.0,0.0003863,14]
[341416914,1730868657322,-500.0,0.0003863,14]
[341416915,1730868657331,-500.0,0.0003863,14]
[341416916,1730868657341,-507.91394664,0.0003863,14]
[341416917,1730868657350,-500.0,0.0003863,14]
[341416918,1730868657360,-500.0,0.0003863,14]
[341416919,1730868657369,-500.0,0.0003863,14]
[341416920,1730868657378,-510.09469968,0.0003863,14]
[341416921,1730868657388,-500.0,0.0003863,14]
[341416922,1730868657397,-500.0,0.0003863,14]
[341416923,1730868657406,-503.46587654,0.0003863,14]
[341416924,1730868657415,-500.0,0.0003863,14]
[341416925,1730868657424,-1006.49749002,0.0003863,14]
[341416926,1730868657434,-500.0,0.0003863,14]
[341416927,1730868657443,-500.0,0.0003863,14]
[341416928,1730868657452,-500.0,0.0003863,14]
[341416929,1730868657461,-158.85379088,0.0003863,14]
[341416930,1730868657470,-500.0,0.0003863,14]
[341416931,1730868657480,-904.06,0.0003863,14]
[341416932,1730868657489,-215.77562467,0.0003863,14]
[341416933,1730868657498,-323.84159283,0.0003863,14]
[341416934,1730868657510,-500.0,0.0003863,14]
[341416935,1730868657519,-500.0,0.0003863,2]
[341416936,1730868657528,-500.0,0.0003863,14]
[341416937,1730868657537,-500.0,0.0003863,14]
[341416938,1730868657547,-500.0,0.0003863,14]
[341416939,1730868657556,-500.0,0.0003863,14]
[341416940,1730868657565,-405.36171874,0.0003863,14]
[341416941,1730868657574,-500.0,0.0003863,14]
[341416942,1730868657586,-500.0,0.0003863,14]
[341416943,1730868657599,-500.0,0.0003863,14]
[341416944,1730868657608,-500.0,0.0003863,14]
[341416945,1730868657618,-500.0,0.0003863,14]
[341416946,1730868657627,-500.0,0.0003863,14]
[341416947,1730868657635,-500.0,0.0003863,14]
[341416948,1730868657645,-500.0,0.0003863,14]
[341416949,1730868657654,-500.0,0.0003863,14]
[341416950,1730868657664,-500.0,0.0003863,14]
[341416951,1730868657673,-500.0,0.0003863,14]
[341416952,1730868657682,-500.0,0.0003863,14]
[341416953,1730868657692,-500.0,0.0003863,14]
[341416954,1730868657701,-508.22679146,0.0003863,14]
[341416955,1730868657710,-502.9878164,0.0003863,14]
[341416956,1730868657719,-500.0,0.0003863,14]
[341416957,1730868657775,-500.0,0.0003863,14]
[341416958,1730868657784,-500.0,0.0003863,14]
[341416959,1730868657793,-512.95291031,0.0003863,14]
[341416960,1730868657802,-500.0,0.0003863,14]
[341416961,1730868657812,-500.0,0.0003863,14]
[341416962,1730868657821,-500.0,0.0003863,14]
[341416963,1730868657831,-500.0,0.0003863,14]
[341416964,1730868657842,-511.24502308,0.0003863,14]
[341416965,1730868657852,-500.0,0.0003863,14]
[341416966,1730868657861,-773.63,0.0003863,14]
[341416967,1730868657871,-425.37365834,0.0003863,14]
[341416968,1730868657880,-500.0,0.0003863,14]
[341416969,1730868657889,-500.0,0.0003863,14]
[341416970,1730868657898,-505.2303639,0.0003863,14]
[341416971,1730868657908,-823.92,0.0003863,14]
[341416972,1730868657918,-178.52150168,0.0003863,14]
[341416973,1730868657927,-500.0,0.0003863,14]
[341416974,1730868657937,-500.0,0.0003863,14]
[341416975,1730868657945,-500.0,0.0003863,14]
[341416976,1730868657956,-562.15935372,0.0003863,14]
[341416977,1730868657966,-500.0,0.0003863,14]
[341416978,1730868657975,-511.01741892,0.0003863,14]
[341416979,1730868657984,-500.0,0.0003863,14]
[341416980,1730868657994,-500.0,0.0003863,14]
[341416981,1730868658003,-500.0,0.0003863,14]
[341416982,1730868658012,-500.0,0.0003863,14]
[341416983,1730868658021,-500.0,0.0003863,14]
[341416984,1730868658031,-500.0,0.0003863,14]
[341416985,1730868658040,-500.0,0.0003863,14]
[341416986,1730868658049,-240.40915862,0.0003863,14]
[341416987,1730868658058,-500.0,0.0003863,14]
[341416988,1730868658068,-500.0,0.0003863,14]
[341416989,1730868658077,-500.0,0.0003863,14]
[341416990,1730868658086,-432.59683558,0.0003863,14]
[341416991,1730868658097,-500.0,0.0003863,14]
[341416992,1730868658105,-501.52354579,0.0003863,14]
[341416993,1730868658115,-500.0,0.0003863,14]
[341416994,1730868658124,-500.0,0.0003863,14]
[341416995,1730868658134,-500.0,0.0003863,14]
[341416996,1730868658143,-436.57492593,0.0003863,14]
[341416997,1730868658153,-508.48837195,0.0003863,14]
[341416998,1730868658162,-515.8939361,0.0003863,14]
[341416999,1730868658172,-500.0,0.0003863,14]
[341417000,1730868658181,-500.0,0.0003863,14]
[341417001,1730868658190,-500.0,0.0003863,14]
[341417002,1730868658200,-500.0,0.0003863,14]
[341417003,1730868658210,-500.0,0.0003863,14]
[341417004,1730868658219,-570.4866706,0.0003863,14]
[341417005,1730868658228,-518.76654981,0.0003863,14]
[341417006,1730868658238,-503.71961932,0.0003863,14]
[341417007,1730868658247,-500.0,0.0003863,14]
[341417008,1730868658256,-508.28667252,0.0003863,14]
[341417009,1730868658266,-500.0,0.0003863,14]
[341417010,1730868658276,-500.0,0.0003863,14]
[341417011,1730868658285,-543.51,0.0003863,14]
[341417012,1730868658295,-601.17017625,0.0003863,14]
[341417013,1730868658305,-500.0,0.0003863,14]
[341417014,1730868658315,-515.41767733,0.0003863,14]
[341417015,1730868658325,-500.0,0.0003863,14]
[341417016,1730868658334,-500.0,0.0003863,14]
[341417017,1730868658344,-2798.29,0.0003863,14]
[341417018,1730868658354,-500.0,0.0003863,14]
[341417019,1730868658364,-500.0,0.0003863,14]
[341417020,1730868658373,-500.0,0.0003863,14]
[341417021,1730868658382,-263.21439574,0.0003863,14]
[341417022,1730868658391,-200.0,0.0003863,7]
[341417023,1730868658400,-500.0,0.0003863,14]
[341417024,1730868658409,-500.0,0.0003863,14]
[341417025,1730868658418,-500.0,0.0003863,14]
[341417026,1730868658427,-500.0,0.0003863,14]
[341417027,1730868658436,-500.0,0.0003863,14]
[341417028,1730868658446,-449.42712411,0.0003863,14]
[341417029,1730868658456,-500.0,0.0003863,14]
[341417030,1730868658466,-500.0,0.0003863,14]
[341417031,1730868658475,-715.45,0.0003863,14]
[341417032,1730868658485,-462.73877482,0.0003863,14]
[341417033,1730868658494,-500.0,0.0003863,14]
[341417034,1730868658509,-500.0,0.0003863,14]
[341417035,1730868658518,-500.0,0.0003863,14]
[341417036,1730868658528,-656.66,0.0003863,14]
[341417037,1730868658538,-500.0,0.0003863,14]
[341417038,1730868658549,-500.0,0.0003863,14]
[341417039,1730868658559,-500.0,0.0003863,14]
[341417040,1730868658568,-521.26957413,0.0003863,14]
[341417041,1730868658580,-500.0,0.0003863,14]
[341417042,1730868658589,-584.77050323,0.0003863,14]
[341417043,1730868658600,-500.0,0.0003863,14]
[341417044,1730868658610,-500.0,0.0003863,14]
[341417045,1730868658619,-500.0,0.0003863,14]
[341417046,1730868658629,-462.90761081,0.0003863,14]
[341417047,1730868658638,-500.0,0.0003863,14]
[341417048,1730868658691,-500.0,0.0003863,14]
[341417049,1730868658701,-511.31861856,0.0003863,14]
[341417050,1730868658710,-500.0,0.0003863,14]
[341417051,1730868658719,-508.75754973,0.0003863,14]
[341417052,1730868658728,-500.0,0.0003863,14]
[341417053,1730868658737,-500.0,0.0003863,14]
[341417054,1730868658746,-506.5559831,0.0003863,14]
[341417055,1730868658755,-500.0,0.0003863,14]
[341417056,1730868658765,-500.0,0.0003863,14]
[341417057,1730868658775,-500.0,0.0003863,14]
[341417058,1730868658784,-500.0,0.0003863,14]
[341417059,1730868658794,-500.0,0.0003863,14]
[341417060,1730868658803,-500.0,0.0003863,14]
[341417061,1730868658812,-500.0,0.0003863,14]
[341417062,1730868658821,-331.60277656,0.0003863,14]
[341417063,1730868658830,-500.0,0.0003863,14]
[341417064,1730868658840,-1006.68,0.0003863,14]
[341417065,1730868658850,-505.57167744,0.0003863,14]
[341417066,1730868658860,-500.0,0.0003863,14]
[341417067,1730868658870,-500.0,0.0003863,14]
[341417068,1730868658879,-500.0,0.0003863,14]
[341417069,1730868658888,-500.0,0.0003863,14]
[341417070,1730868658896,-519.76383997,0.0003863,14]
[341417071,1730868658905,-500.0,0.0003863,14]
[341417072,1730868658915,-500.0,0.0003863,14]
[341417073,1730868658924,-506.41221625,0.0003863,14]
[341417074,1730868658933,-607.13372358,0.0003863,14]
[341417075,1730868658942,-500.0,0.0003863,14]
[341417076,1730868658951,-659.12,0.0003863,14]
[341417077,1730868658960,-500.0,0.0003863,14]
[341417078,1730868658969,-1141.98,0.0003863,14]
[341417079,1730868658979,-500.0,0.0003863,14]
[341417080,1730868658989,-867.45,0.0003863,14]
[341417081,1730868658998,-504.98956756,0.0003863,14]
[341417082,1730868659007,-460.75196004,0.0003863,14]
[341417083,1730868659016,-505.42749808,0.0003863,14]
[341417084,1730868659026,-500.0,0.0003863,14]
[341417085,1730868659035,-500.0,0.0003863,14]
[341417086,1730868659044,-588.55856258,0.0003863,14]
[341417087,1730868659053,-939.45,0.0003863,14]
[341417088,1730868659062,-500.0,0.0003863,14]
[341417089,1730868659072,-500.0,0.0003863,14]
[341417090,1730868659082,-500.0,0.0003863,14]
[341417091,1730868659094,-500.0,0.0003863,14]
[341417092,1730868659106,-500.0,0.0003863,14]
[341417093,1730868659116,-8657.6,0.0003863,14]
[341417094,1730868659127,-500.0,0.0003863,14]
[341417095,1730868659137,-500.0,0.0003863,14]
[341417096,1730868659148,-500.0,0.0003863,14]
[341417097,1730868659158,-500.0,0.0003863,14]
[341417098,1730868659168,-500.0,0.0003863,14]
[341417099,1730868659178,-500.0,0.0003863,14]
[341417100,1730868659188,-532.39508974,0.0003863,14]
[341417101,1730868659199,-500.0,0.0003863,14]
[341417102,1730868659208,-500.0,0.0003863,14]
[341417103,1730868659217,-500.0,0.0003863,14]
[341417104,1730868659227,-500.0,0.0003863,14]
[341417105,1730868659237,-566.03139023,0.0003863,14]
[341417106,1730868659247,-500.0,0.0003863,14]
[341417107,1730868659258,-500.0,0.0003863,14]
[341417108,1730868659268,-500.0,0.0003863,7]
[341417109,1730868659277,-500.0,0.0003863,14]
[341417110,1730868659287,-500.0,0.0003863,14]
[341417111,1730868659297,-500.0,0.0003863,14]
[341417112,1730868659307,-500.0,0.0003863,14]
[341417113,1730868659318,-500.0,0.0003863,14]
[341417114,1730868659328,-3162.9,0.0003863,14]
[341417115,1730868659337,-500.0,0.0003863,14]
[341417116,1730868659349,-500.0,0.0003863,14]
[341417117,1730868659359,-500.0,0.0003863,14]
[341417118,1730868659368,-500.0,0.0003863,14]
[341417119,1730868659378,-500.0,0.0003863,14]
[341417120,1730868659388,-500.0,0.0003863,14]
[341417121,1730868659397,-500.0,0.0003863,14]
[341417122,1730868659408,-500.0,0.0003863,14]
[341417123,1730868659418,-500.0,0.0003863,14]
[341417124,1730868659428,-512.84113116,0.0003863,14]
[341417125,1730868659439,-500.0,0.0003863,14]
[341417126,1730868659449,-500.0,0.0003863,14]
[341417127,1730868659460,-511.75019118,0.0003863,14]
[341417128,1730868659469,-500.0,0.0003863,14]
[341417129,1730868659478,-437.25711345,0.0003863,14]
[341417130,1730868659488,-500.0,0.0003863,14]
[341417131,1730868659498,-500.0,0.0003863,14]
[341417132,1730868659512,-501.43252782,0.0003863,14]
[341417133,1730868659565,-500.0,0.0003863,14]
[341417134,1730868659576,-500.0,0.0003863,14]
[341417135,1730868659588,-2538.96,0.0003863,14]
[341417136,1730868659600,-500.0,0.0003863,14]
[341417137,1730868659609,-500.0,0.0003863,14]
[341417138,1730868659619,-500.0,0.0003863,14]
[341417139,1730868659628,-500.0,0.0003863,14]
[341417140,1730868659638,-513.98340662,0.0003863,14]
[341417141,1730868659648,-521.07264678,0.0003863,14]
[341417142,1730868659658,-500.0,0.0003863,14]
[341417143,1730868659668,-500.0,0.0003863,14]
[341417144,1730868659678,-500.0,0.0003863,14]
[341417145,1730868659688,-500.0,0.0003863,14]
[341417146,1730868659697,-500.0,0.0003863,14]
[341417147,1730868659707,-500.0,0.0003863,14]
[341417148,1730868659717,-500.0,0.0003863,14]
[341417149,1730868659726,-517.13651207,0.0003863,14]
[341417150,1730868659736,-500.0,0.0003863,14]
[341417151,1730868659746,-500.0,0.0003863,14]
[341417152,1730868659755,-500.0,0.0003863,14]
[341417153,1730868659765,-509.48175401,0.0003863,14]
[341417154,1730868659774,-500.0,0.0003863,14]
[341417155,1730868659784,-500.0,0.0003863,14]
[341417156,1730868659794,-505.43174002,0.0003863,14]
[341417157,1730868659804,-500.0,0.0003863,14]
[341417158,1730868659813,-500.0,0.0003863,14]
[341417159,1730868659823,-500.0,0.0003863,14]
[341417160,1730868659833,-500.0,0.0003863,14]
[341417161,1730868659844,-9532.68,0.0003863,14]
[341417162,1730868659853,-215.47404038,0.0003863,14]
[341417163,1730868659863,-7389.67,0.0003863,14]
[341417164,1730868659872,-500.0,0.0003863,14]
[341417165,1730868659882,-500.0,0.0003863,14]
[341417166,1730868659892,-623.74070195,0.0003863,14]
[341417167,1730868659902,-500.0,0.0003863,14]
[341417168,1730868659912,-500.0,0.0003863,14]
[341417169,1730868659922,-223.74821708,0.0003863,14]
[341417170,1730868659932,-500.0,0.0003863,14]
[341417171,1730868659946,-507.59176255,0.0003863,14]
[341417172,1730868659968,-500.0,0.0003863,14]
[341417173,1730868659987,-500.0,0.0003863,14]
[341417174,1730868660008,-500.0,0.0003863,14]
[341417175,1730868660029,-200.0,0.00038673,4]
[341417176,1730868660046,-500.0,0.00038712,60]
[341417177,1730868660067,-2765.24,0.00038767,120]
[341417178,1730868660084,-501.7845816,0.00038891,5]
[341417179,1730868660100,-2000.0,0.00038891,5]
[341417180,1730868660119,-307.0,0.000389,17]
[341417181,1730868660137,-500.0,0.00038904,14]
[341417182,1730868660153,-500.0,0.00038904,14]
[341417183,1730868660167,-152.32430625,0.00038904,14]
[341417184,1730868660184,-500.0,0.00038904,14]
[341417185,1730868660200,-500.0,0.00038904,14]
[341417186,1730868660216,-500.0,0.00038904,14]
[341417187,1730868660230,-508.7949537,0.00038904,14]
[341417188,1730868660244,-500.0,0.00038904,14]
[341417189,1730868660259,-513.4009327,0.00038904,14]
[341417190,1730868660274,-500.0,0.00038904,19]
[341417191,1730868660290,-500.0,0.00038904,14]
[341417192,1730868660304,-513.29710407,0.00038904,14]
[341417193,1730868660318,-510.52947577,0.00038904,14]
[341417194,1730868660334,-500.0,0.00038904,14]
[341417195,1730868660348,-500.0,0.00038904,14]
[341417196,1730868660363,-524.60156571,0.00038904,14]
[341417197,1730868660377,-188.83648902,0.00038904,14]
[341417198,1730868660391,-500.0,0.00038904,14]
[341417199,1730868660405,-500.0,0.00038904,14]
[341417200,1730868660420,-500.0,0.00038904,14]
[341417201,1730868660435,-500.0,0.00038904,14]
[341417202,1730868660449,-500.0,0.00038904,14]
[341417203,1730868660465,-503.46341412,0.00038904,14]
[341417204,1730868660479,-500.0,0.00038904,14]
[341417205,1730868660493,-547.14427751,0.00038904,14]
[341417206,1730868660512,-561.86191828,0.00038904,14]
[341417207,1730868660527,-500.0,0.00038904,14]
[341417208,1730868660542,-500.0,0.00038904,14]
[341417209,1730868660557,-500.0,0.00038904,14]
[341417210,1730868660639,-186.07745138,0.00038904,14]
[341417211,1730868660652,-500.0,0.00038904,14]
[341417212,1730868660661,-511.9036792,0.00038904,14]
[341417213,1730868660671,-500.0,0.00038904,14]
[341417214,1730868660681,-500.0,0.00038904,14]
[341417215,1730868660690,-151.37994908,0.00038904,14]
[341417216,1730868660700,-500.0,0.00038904,14]
[341417217,1730868660709,-500.0,0.00038904,14]
[341417218,1730868660719,-500.0,0.00038904,14]
[341417219,1730868660729,-904.06,0.00038904,14]
[341417220,1730868660738,-627.9000846,0.00038904,2]
[341417221,1730868660747,-500.0,0.00038904,14]
[341417222,1730868660757,-500.0,0.00038904,14]
[341417223,1730868660767,-503.06607283,0.00038904,14]
[341417224,1730868660776,-361.56666987,0.00038904,14]
[341417225,1730868660786,-506.28686073,0.00038904,14]
[341417226,1730868660797,-500.0,0.00038904,14]
[341417227,1730868660807,-500.0,0.00038904,14]
[341417228,1730868660816,-500.0,0.00038904,14]
[341417229,1730868660826,-500.0,0.00038904,14]
[341417230,1730868660836,-500.0,0.00038904,14]
[341417231,1730868660846,-500.0,0.00038904,14]
[341417232,1730868660856,-570.9411744,0.00038904,14]
[341417233,1730868660865,-500.0,0.00038904,14]
[341417234,1730868660875,-511.46394833,0.00038904,14]
[341417235,1730868660885,-500.0,0.00038904,14]
[341417236,1730868660894,-500.0,0.00038904,14]
[341417237,1730868660904,-500.0,0.00038904,14]
[341417238,1730868660914,-500.0,0.00038904,14]
[341417239,1730868660923,-500.0,0.00038904,14]
[341417240,1730868660933,-500.0,0.00038904,14]
[341417241,1730868660943,-773.63,0.00038904,14]
[341417242,1730868660952,-500.0,0.00038904,14]
[341417243,1730868660962,-823.92,0.00038904,14]
[341417244,1730868660972,-369.53366413,0.00038904,14]
[341417245,1730868660981,-510.25084762,0.00038904,14]
[341417246,1730868660991,-456.87001486,0.00038904,14]
[341417247,1730868661001,-509.45523629,0.00038904,14]
[341417248,1730868661011,-524.93849745,0.00038904,14]
[341417249,1730868661020,-500.0,0.00038904,14]
[341417250,1730868661031,-514.447207,0.00038904,14]
[341417251,1730868661041,-500.0,0.00038904,14]
[341417252,1730868661050,-500.0,0.00038904,14]
[341417253,1730868661060,-500.0,0.00038904,14]
[341417254,1730868661069,-339.34295282,0.00038904,14]
[341417255,1730868661078,-500.0,0.00038904,14]
[341417256,1730868661088,-509.53560471,0.00038904,14]
[341417257,1730868661099,-500.0,0.00038904,14]
[341417258,1730868661108,-500.0,0.00038904,14]
[341417259,1730868661117,-405.79874651,0.00038904,14]
[341417260,1730868661127,-500.0,0.00038904,14]
[341417261,1730868661136,-500.0,0.00038904,14]
[341417262,1730868661146,-500.0,0.00038904,14]
[341417263,1730868661155,-500.0,0.00038904,14]
[341417264,1730868661165,-500.0,0.00038904,14]
[341417265,1730868661174,-500.0,0.00038904,14]
[341417266,1730868661184,-521.35868174,0.00038904,14]
[341417267,1730868661193,-516.10152498,0.00038904,14]
[341417268,1730868661203,-500.0,0.00038904,14]
[341417269,1730868661213,-543.51,0.00038904,14]
[341417270,1730868661224,-500.0,0.00038904,14]
[341417271,1730868661233,-500.0,0.00038904,14]
[341417272,1730868661243,-2798.29,0.00038904,14]
[341417273,1730868661253,-500.0,0.00038904,14]
[341417274,1730868661263,-200.0,0.00038904,7]
[341417275,1730868661272,-500.0,0.00038904,14]
[341417276,1730868661282,-500.0,0.00038904,14]
[341417277,1730868661292,-500.0,0.00038904,14]
[341417278,1730868661303,-500.0,0.00038904,14]
[341417279,1730868661313,-516.44341833,0.00038904,14]
[341417280,1730868661323,-500.0,0.00038904,14]
[341417281,1730868661333,-715.45,0.00038904,14]
[341417282,1730868661343,-519.67495171,0.00038904,14]
[341417283,1730868661354,-500.0,0.00038904,14]
[341417284,1730868661363,-656.66,0.00038904,14]
[341417285,1730868661372,-500.0,0.00038904,14]
[341417286,1730868661382,-500.0,0.00038904,14]
[341417287,1730868661391,-500.0,0.00038904,14]
[341417288,1730868661401,-171.46448193,0.00038904,14]
[341417289,1730868661410,-500.0,0.00038904,14]
[341417290,1730868661420,-413.2144793,0.00038904,14]
[341417291,1730868661430,-500.0,0.00038904,14]
[341417292,1730868661439,-500.0,0.00038904,14]
[341417293,1730868661450,-500.0,0.00038904,14]
[341417294,1730868661459,-500.0,0.00038904,14]
[341417295,1730868661468,-500.0,0.00038904,14]
[341417296,1730868661478,-500.0,0.00038904,14]
[341417297,1730868661488,-500.0,0.00038904,14]
[341417298,1730868661497,-500.0,0.00038904,14]
[341417299,1730868661509,-500.0,0.00038904,14]
[341417300,1730868661519,-500.0,0.00038904,14]
[341417301,1730868661528,-231.70043583,0.00038904,14]
[341417302,1730868661537,-500.0,0.00038904,14]
[341417303,1730868661548,-500.0,0.00038904,14]
[341417304,1730868661557,-1006.68,0.00038904,14]
[341417305,1730868661567,-325.73857499,0.00038904,14]
[341417306,1730868661577,-500.0,0.00038904,14]
[341417307,1730868661589,-500.0,0.00038904,14]
[341417308,1730868661602,-514.96658098,0.00038904,14]
[341417309,1730868661612,-515.60465543,0.00038904,14]
[341417310,1730868661621,-500.0,0.00038904,14]
[341417311,1730868661631,-508.59778539,0.00038904,14]
[341417312,1730868661641,-659.12,0.00038904,14]
[341417313,1730868661651,-500.0,0.00038904,14]
[341417314,1730868661663,-1141.98,0.00038904,14]
[341417315,1730868661674,-500.0,0.00038904,14]
[341417316,1730868661738,-867.45,0.00038904,14]
[341417317,1730868661749,-500.0,0.00038904,14]
[341417318,1730868661759,-500.0,0.00038904,14]
[341417319,1730868661769,-939.45,0.00038904,14]
[341417320,1730868661779,-500.0,0.00038904,14]
[341417321,1730868661790,-500.0,0.00038904,14]
[341417322,1730868661800,-500.0,0.00038904,14]
[341417323,1730868661810,-8657.6,0.00038904,14]
[341417324,1730868661821,-500.0,0.00038904,14]
[341417325,1730868661831,-500.0,0.00038904,14]
[341417326,1730868661841,-500.0,0.00038904,14]
[341417327,1730868661854,-500.0,0.00038904,14]
[341417328,1730868661863,-500.0,0.00038904,14]
[341417329,1730868661873,-500.0,0.00038904,14]
[341417330,1730868661882,-500.0,0.00038904,14]
[341417331,1730868661892,-500.0,0.00038904,14]
[341417332,1730868661902,-500.0,0.00038904,14]
[341417333,1730868661912,-500.0,0.00038904,14]
[341417334,1730868661922,-385.53121822,0.00038904,7]
[341417335,1730868661931,-500.0,0.00038904,14]
[341417336,1730868661941,-500.0,0.00038904,14]
[341417337,1730868661950,-500.0,0.00038904,14]
[341417338,1730868661960,-3162.9,0.00038904,14]
[341417339,1730868661970,-500.0,0.00038904,14]
[341417340,1730868661980,-500.0,0.00038904,14]
[341417341,1730868661990,-500.0,0.00038904,14]
[341417342,1730868662000,-608.78766871,0.00038904,14]